fUST/lending_fUST_20250809
["ID","MTS","AMOUNT","RATE_DAILY","PERIOD"]
[378048825,1754694647194,-151.0,0.00022934,7]
[378048826,1754694647203,-151.0,0.00022934,2]
[378048827,1754694647212,-151.0,0.00022934,7]
[378048828,1754694647221,-151.0,0.00022934,7]
[378048829,1754694647231,-460.0,0.00022934,2]
[378048830,1754694647240,-220.6710221,0.00022934,2]
[378048831,1754694647251,-460.0,0.00022934,2]
[378048832,1754694647263,-460.0,0.00022934,2]
[378048833,1754694647274,-151.0,0.00022934,7]
[378048834,1754694647285,-143.4378121,0.00022934,7]
[378048835,1754694647298,-7.5621879,0.00022934,7]
[378048836,1754694647308,-151.0,0.00022934,7]
[378048837,1754694647317,-460.0,0.00022934,2]
[378048838,1754694647326,-151.0,0.00022934,7]
[378048839,1754694647335,-151.0,0.00022934,7]
[378048840,1754694647346,-151.0,0.00022934,7]
[378048841,1754694647355,-460.0,0.00022934,2]
[378048842,1754694647364,-460.0,0.00022934,2]
[378048843,1754694647373,-460.0,0.00022934,2]
[378048844,1754694647383,-460.0,0.00022934,2]
[378048845,1754694647392,-461.25503774,0.00022934,7]
[378048846,1754694647402,-857.4142529,0.00022934,2]
[378048847,1754694647416,-935.5364121,0.00022934,2]
[378048848,1754694647428,-3136.049335,0.00022934,2]
[378048849,1754694647437,-151.0,0.00022934,7]
[378048850,1754694647447,-151.0,0.00022934,2]
[378048851,1754694647456,-151.0,0.00022934,7]
[378048852,1754694647465,-151.0,0.00022934,7]
[378048853,1754694647475,-460.0,0.00022934,2]
[378048854,1754694647484,-500.0,0.00022934,2]
[378048855,1754694647493,-151.0,0.00022934,2]
[378048856,1754694647503,-151.0,0.00022934,2]
[378048857,1754694647512,-500.0,0.00022934,2]
[378048858,1754694647521,-151.0,0.00022934,2]
[378048859,1754694647530,-151.0,0.00022934,7]
[378048860,1754694647539,-151.0,0.00022934,7]
[378048861,1754694647549,-151.0,0.00022934,7]
[378048862,1754694647558,-205.60814,0.00022934,7]
[378048863,1754694647568,-460.74518893,0.00022934,2]
[378048864,1754694647578,-233.087123,0.00022934,7]
[378048865,1754694647589,-460.0,0.00022934,2]
[378048866,1754694647598,-151.0,0.00022934,7]
[378048867,1754694647607,-151.0,0.00022934,7]
[378048868,1754694647617,-151.0,0.00022934,7]
[378048869,1754694647626,-151.0,0.00022934,7]
[378048870,1754694647636,-151.0,0.00022934,7]
[378048871,1754694647645,-151.0,0.00022934,7]
[378048872,1754694647654,-460.0,0.00022934,2]
[378048873,1754694647663,-151.0,0.00022934,7]
[378048874,1754694647673,-460.0,0.00022934,2]
[378048875,1754694647683,-151.0,0.00022934,7]
[378048876,1754694647692,-151.0,0.00022934,7]
[378048877,1754694647702,-114.475829,0.00022934,2]
[378048878,1754694647806,-345.524171,0.00022934,2]
[378048879,1754694647816,-302.8008007,0.00022934,2]
[378048880,1754694647827,-157.1991993,0.00022934,2]
[378048881,1754694647837,-151.0,0.00022934,7]
[378048882,1754694647846,-151.0,0.00022934,7]
[378048883,1754694647856,-151.0,0.00022934,7]
[378048884,1754694647867,-151.0,0.00022934,7]
[378048885,1754694647877,-460.0,0.00022934,2]
[378048886,1754694647887,-151.0,0.00022934,7]
[378048887,1754694647896,-151.0,0.00022934,7]
[378048888,1754694647905,-460.0,0.00022934,2]
[378048889,1754694647914,-494.81819549,0.00022934,2]
[378048890,1754694647923,-151.0,0.00022934,7]
[378048891,1754694647932,-151.0,0.00022934,7]
[378048892,1754694647941,-151.0,0.00022934,7]
[378048893,1754694647951,-151.0,0.00022934,7]
[378048894,1754694647960,-151.0,0.00022934,7]
[378048895,1754694647969,-460.0,0.00022934,2]
[378048896,1754694647978,-151.0,0.00022934,7]
[378048897,1754694647987,-151.0,0.00022934,7]
[378048898,1754694647997,-191.628738,0.00022934,7]
[378048899,1754694648006,-151.0,0.00022935,7]
[378048900,1754694648015,-555.0581,0.00022935,7]
[378048901,1754694648024,-555.0581,0.00022935,7]
[378048902,1754694648034,-151.0,0.00022935,7]
[378048903,1754694648043,-151.0,0.00022935,7]
[378048904,1754694648052,-151.0,0.00022935,7]
[378048905,1754694648061,-151.0,0.00022935,7]
[378048906,1754694648071,-151.0,0.00022935,7]
[378048907,1754694648080,-601.468149,0.00022935,7]
[378048908,1754694648090,-601.468149,0.00022935,7]
[378048909,1754694648099,-151.0,0.00022935,7]
[378048910,1754694648108,-256.724826,0.00022935,7]
[378048911,1754694648117,-256.724826,0.00022935,7]
[378048912,1754694648126,-434.253354,0.00022935,7]
[378048913,1754694648136,-434.253354,0.00022935,7]
[378048914,1754694648145,-434.253354,0.00022935,7]
[378048915,1754694648154,-434.253354,0.00022935,7]
[378048916,1754694648163,-151.0,0.00022935,7]
[378048917,1754694648173,-151.0,0.00022935,7]
[378048918,1754694648182,-151.0,0.00022935,7]
[378048919,1754694648191,-151.0,0.00022935,7]
[378048920,1754694648200,-151.0,0.00022935,7]
[378048921,1754694648210,-295.803075,0.00022935,7]
[378048922,1754694648223,-151.0,0.00022935,7]
[378048923,1754694648232,-160.0,0.00022935,7]
[378048924,1754694648241,-151.0,0.00022935,7]
[378048925,1754694648251,-151.0,0.00022935,7]
[378048926,1754694648260,-151.0,0.00022935,7]
[378048927,1754694648270,-151.0,0.00022935,7]
[378048928,1754694648279,-461.45099301,0.00022935,7]
[378048929,1754694648288,-151.0,0.00022935,7]
[378048930,1754694648298,-151.0,0.00022935,7]
[378048931,1754694648308,-215.36146706,0.00022935,7]
[378048932,1754694648317,-151.0,0.00022935,7]
[378048933,1754694648328,-151.0,0.00022935,7]
[378048934,1754694648338,-151.0,0.00022935,7]
[378048935,1754694648347,-250.0,0.00022967,2]
[378048936,1754694648356,-500.0,0.00022973,2]
[378048937,1754694648366,-500.0,0.00022973,2]
[378048938,1754694648375,-169.0,0.00023,7]
[378048939,1754694648385,-200.0,0.00023056,15]
[378048940,1754694648394,-300.0,0.00023056,15]
[378048941,1754694648403,-151.0,0.00023064,7]
[378048942,1754694648412,-255.400406,0.00023064,7]
[378048943,1754694648422,-151.0,0.00023064,7]
[378048944,1754694648431,-151.0,0.00023064,7]
[378048945,1754694648441,-151.0,0.00023064,7]
[378048946,1754694648450,-59.0220914,0.00023064,7]
[378048947,1754694648463,-91.9779086,0.00023064,7]
[378048948,1754694648472,-246.802382,0.00023064,7]
[378048949,1754694648482,-151.0,0.00023064,7]
[378048950,1754694648491,-151.0,0.00023064,7]
[378048951,1754694648501,-151.0,0.00023064,7]
[378048952,1754694648511,-151.0,0.00023064,7]
[378048953,1754694648521,-151.0,0.00023064,7]
[378048954,1754694648530,-268.243441,0.00023064,7]
[378048955,1754694648540,-151.0,0.00023064,7]
[378048956,1754694648549,-151.0,0.00023064,7]
[378048957,1754694648558,-151.0,0.00023065,7]
[378048958,1754694648568,-151.0,0.00023065,7]
[378048959,1754694648578,-434.253354,0.00023065,7]
[378048960,1754694648587,-434.253354,0.00023065,7]
[378048961,1754694648597,-434.253354,0.00023065,7]
[378048962,1754694648606,-434.253354,0.00023065,7]
[378048963,1754694648616,-247.068615,0.00023065,7]
[378048964,1754694648625,-1000.0,0.00023065,2]
[378048965,1754694648635,-259.30593299,0.00023065,2]
[378048966,1754694690763,150.0,0.00020835,2]
[378048967,1754694703142,150.39334,0.00026564,30]
[378048968,1754694983776,5000.0,0.00030137,120]
[378048969,1754694992245,150.0,0.00020835,2]
[378048972,1754695305699,150.39334,0.00026596,30]
[378048973,1754695503025,269.2773633,0.000211,2]
[378048976,1754695599124,-295.48600254,0.00021733,2]
[378048980,1754695659865,91376.55826651,0.00031661,30]
[378048992,1754695726646,164.748245,0.00013699,2]
[378048993,1754695729373,400.0,0.00028,120]
[378048994,1754695761166,-140.16104115,0.00021733,2]
[378048995,1754695761189,-177.13190843,0.00021831,2]
[378048996,1754695761340,-583.63542129,0.00021833,2]
[378048997,1754695761369,-289.0,0.00021931,2]
[378048998,1754695761394,-300.0,0.00021931,2]
[378048999,1754695761415,-300.0,0.00021932,2]
[378049000,1754695761438,-1200.0,0.00021932,2]
[378049001,1754695761458,-460.0,0.00021932,2]
[378049002,1754695761479,-769.09,0.00021932,2]
[378049003,1754695761499,-460.0,0.00021932,2]
[378049004,1754695761520,-460.0,0.00021932,2]
[378049005,1754695761544,-460.0,0.00021932,2]
[378049006,1754695761565,-460.0,0.00021932,2]
[378049007,1754695761584,-460.0,0.00021932,2]
[378049008,1754695761605,-460.0,0.00021932,2]
[378049009,1754695761630,-460.0,0.00021932,2]
[378049010,1754695761651,-1022.74,0.00021932,2]
[378049011,1754695761671,-23412.75103989,0.00021932,2]
[378049012,1754695761692,-328.21409343,0.00021933,2]
[378049013,1754695761713,-158.85512123,0.00021933,2]
[378049014,1754695761735,-1642.46,0.00021933,2]
[378049015,1754695761756,-460.0,0.00021933,2]
[378049016,1754695761782,-460.0,0.00021933,2]
[378049017,1754695761803,-830.13,0.00021933,2]
[378049018,1754695761827,-460.0,0.00021933,2]
[378049019,1754695761848,-460.0,0.00021933,2]
[378049020,1754695761869,-680.35,0.00021933,2]
[378049021,1754695761889,-460.0,0.00021933,2]
[378049022,1754695761911,-918.37,0.00021933,2]
[378049023,1754695761932,-460.0,0.00021933,2]
[378049024,1754695761953,-460.0,0.00021933,2]
[378049025,1754695761973,-460.0,0.00021933,2]
[378049026,1754695761993,-758.87,0.00021933,2]
[378049027,1754695762013,-460.0,0.00021933,2]
[378049028,1754695762035,-460.0,0.00021933,2]
[378049029,1754695762055,-460.0,0.00021933,2]
[378049030,1754695762076,-460.0,0.00021933,2]
[378049031,1754695762096,-318.45887208,0.00021933,2]
[378049032,1754695762118,-460.0,0.00021933,2]
[378049033,1754695762138,-508.06,0.00021933,2]
[378049034,1754695762159,-460.0,0.00021933,2]
[378049035,1754695762179,-460.0,0.00021933,2]
[378049036,1754695762200,-460.0,0.00021933,2]
[378049037,1754695762219,-460.0,0.00021933,2]
[378049038,1754695762239,-169.977068,0.00021933,2]
[378049039,1754695762258,-18249.392041,0.00021934,2]
[378049040,1754695762279,-500.0,0.00021973,2]
[378049041,1754695762298,-500.01894309,0.00021973,2]
[378049042,1754695762318,-500.0,0.00021973,2]
[378049043,1754695762338,-500.0,0.00022157,2]
[378049044,1754695762357,-500.0,0.00022157,2]
[378049045,1754695762379,-769.09,0.00022206,2]
[378049046,1754695762401,-460.0,0.00022206,2]
[378049047,1754695762421,-511.44857748,0.00022206,2]
[378049048,1754695762441,-460.0,0.00022206,2]
[378049049,1754695762462,-1022.74,0.00022206,2]
[378049050,1754695762484,-1642.46,0.00022207,2]
[378049051,1754695762505,-460.0,0.00022207,2]
[378049052,1754695762526,-460.0,0.00022207,2]
[378049053,1754695762546,-830.13,0.00022207,2]
[378049054,1754695762568,-460.0,0.00022207,2]
[378049055,1754695762590,-680.35,0.00022207,2]
[378049056,1754695762611,-460.0,0.00022207,2]
[378049057,1754695762632,-918.37,0.00022207,2]
[378049058,1754695762653,-460.0,0.00022207,2]
[378049059,1754695762673,-460.0,0.00022207,2]
[378049060,1754695762694,-758.87,0.00022207,2]
[378049061,1754695762714,-328.45474103,0.00022207,2]
[378049062,1754695762735,-460.0,0.00022207,2]
[378049063,1754695762756,-460.0,0.00022207,2]
[378049064,1754695762777,-460.0,0.00022207,2]
[378049065,1754695762797,-508.06,0.00022207,2]
[378049066,1754695762817,-460.0,0.00022207,2]
[378049067,1754695762837,-460.0,0.00022207,2]
[378049068,1754695762856,-500.0,0.00022207,2]
[378049069,1754695762878,-769.09,0.0002248,2]
[378049070,1754695762900,-460.0,0.0002248,2]
[378049071,1754695762921,-460.0,0.0002248,2]
[378049072,1754695762943,-1022.74,0.0002248,2]
[378049073,1754695762964,-1642.46,0.00022481,2]
[378049074,1754695762985,-830.13,0.00022481,2]
[378049075,1754695763006,-460.0,0.00022481,2]
[378049076,1754695763027,-680.35,0.00022481,2]
[378049077,1754695763050,-918.37,0.00022481,2]
[378049078,1754695763071,-243.18,0.00022481,2]
[378049079,1754695763091,-460.0,0.00022481,2]
[378049080,1754695763112,-758.87,0.00022481,2]
[378049081,1754695763133,-213.53,0.00022481,2]
[378049082,1754695763153,-460.0,0.00022481,2]
[378049083,1754695763174,-460.0,0.00022481,2]
[378049084,1754695763194,-508.06,0.00022481,2]
[378049085,1754695763214,-460.0,0.00022481,2]
[378049086,1754695763233,-500.0,0.00022481,2]
[378049087,1754695763260,460.0,0.00021932,2]
[378049091,1754695768853,1464.11,0.00021932,2]
[378049092,1754695769204,1464.11,0.00022206,2]
[378049093,1754695769437,1464.11,0.0002248,2]
[378049094,1754695776810,672.95,0.00021932,2]
[378049095,1754695777099,672.95,0.00022206,2]
[378049096,1754695777186,740.98,0.00021932,2]
[378049097,1754695777347,672.95,0.0002248,2]
[378049098,1754695777433,740.98,0.00022206,2]
[378049099,1754695777720,740.98,0.0002248,2]
[378049100,1754695784131,460.0,0.00021933,2]
[378049101,1754695784407,460.0,0.00022207,2]
[378049102,1754695784654,460.0,0.00022481,2]
[378049106,1754695801200,595.3,0.00021932,2]
[378049107,1754695801518,595.3,0.00022206,2]
[378049108,1754695801780,595.3,0.0002248,2]
[378049109,1754695802473,460.0,0.00021932,2]
[378049110,1754695802768,460.0,0.00022206,2]
[378049111,1754695803139,460.0,0.0002248,2]
[378049112,1754695806064,500.0,0.00021973,2]
[378049113,1754695808897,460.0,0.00021931,2]
[378049114,1754695809131,460.0,0.00022205,2]
[378049115,1754695812816,460.0,0.00021933,2]
[378049116,1754695813085,460.0,0.00022207,2]
[378049117,1754695813339,460.0,0.00022481,2]
[378049118,1754695819372,460.0,0.00021932,2]
[378049119,1754695826847,460.0,0.00021933,2]
[378049120,1754695827089,460.0,0.00022207,2]
[378049121,1754695827337,460.0,0.00022481,2]
[378049129,1754695831984,-1000.0,0.00022521,2]
[378049130,1754695831994,-182.28657621,0.00022605,2]
[378049131,1754695832003,-77.87613681,0.00022655,2]
[378049132,1754695832014,-90.99387415,0.00022655,2]
[378049133,1754695832023,-1000.0,0.00022705,2]
[378049134,1754695832033,-261.0,0.00022753,2]
[378049135,1754695832043,-1022.74,0.00022754,2]
[378049136,1754695832052,-1464.11,0.00022754,2]
[378049137,1754695832062,-672.95,0.00022754,2]
[378049138,1754695832071,-740.98,0.00022754,2]
[378049139,1754695832080,-595.3,0.00022754,2]
[378049140,1754695832088,-460.0,0.00022754,2]
[378049141,1754695832100,-918.37,0.00022755,2]
[378049142,1754695832110,-460.0,0.00022755,2]
[378049143,1754695832119,-758.87,0.00022755,2]
[378049144,1754695832128,-460.0,0.00022755,2]
[378049145,1754695832137,-151.0,0.00022755,7]
[378049146,1754695832146,-460.0,0.00022755,2]
[378049147,1754695832155,-151.0,0.00022755,7]
[378049148,1754695832164,-508.06,0.00022755,2]
[378049149,1754695832173,-460.0,0.00022755,2]
[378049150,1754695832182,-460.0,0.00022755,2]
[378049151,1754695832191,-151.0,0.00022755,7]
[378049152,1754695832201,-460.0,0.00022755,2]
[378049153,1754695832210,-460.0,0.00022755,2]
[378049154,1754695832219,-182.28657621,0.00022831,2]
[378049155,1754695832228,-460.0,0.0002293,2]
[378049156,1754695832238,-460.0,0.00022931,2]
[378049157,1754695832247,-460.0,0.00022931,2]
[378049158,1754695832256,-460.0,0.00022931,2]
[378049159,1754695832265,-169.7,0.00022931,2]
[378049160,1754695832274,-460.0,0.00022931,2]
[378049161,1754695832283,-460.0,0.00022931,2]
[378049162,1754695832292,-243.39,0.00022931,2]
[378049163,1754695832301,-460.0,0.00022931,2]
[378049164,1754695832311,-460.0,0.00022931,2]
[378049165,1754695832321,-460.0,0.00022931,2]
[378049166,1754695832330,-460.0,0.00022931,2]
[378049167,1754695832339,-460.0,0.00022931,2]
[378049168,1754695832348,-460.0,0.00022931,2]
[378049169,1754695832358,-460.0,0.00022931,2]
[378049170,1754695832367,-460.0,0.00022931,2]
[378049171,1754695832376,-460.0,0.00022931,2]
[378049172,1754695832384,-460.0,0.00022931,2]
[378049173,1754695832394,-460.0,0.00022931,2]
[378049174,1754695832402,-460.0,0.00022931,2]
[378049175,1754695832412,-460.0,0.00022931,2]
[378049176,1754695832421,-460.0,0.00022931,2]
[378049177,1754695832430,-460.0,0.00022931,2]
[378049178,1754695832439,-468.73098313,0.00022931,2]
[378049179,1754695832448,-460.0,0.00022931,2]
[378049180,1754695832457,-460.0,0.00022931,2]
[378049181,1754695832466,-460.0,0.00022931,2]
[378049182,1754695832475,-460.0,0.00022931,2]
[378049183,1754695832484,-460.0,0.00022931,2]
[378049184,1754695832493,-151.0,0.00022931,7]
[378049185,1754695832502,-460.0,0.00022931,2]
[378049186,1754695832512,-518.31215799,0.00022931,2]
[378049187,1754695832521,-205.379861,0.00022931,7]
[378049188,1754695832530,-460.0,0.00022931,2]
[378049189,1754695832539,-460.0,0.00022931,2]
[378049190,1754695832548,-205.379861,0.00022931,7]
[378049191,1754695832557,-460.0,0.00022931,2]
[378049192,1754695832566,-4723.62,0.00022931,2]
[378049193,1754695832575,-460.0,0.00022931,2]
[378049194,1754695832584,-460.0,0.00022931,2]
[378049195,1754695832593,-460.0,0.00022931,2]
[378049196,1754695832603,-460.0,0.00022931,2]
[378049197,1754695832613,-151.0,0.00022931,7]
[378049198,1754695832632,-460.0,0.00022931,2]
[378049199,1754695832643,-460.0,0.00022932,2]
[378049200,1754695832652,-460.0,0.00022932,2]
[378049201,1754695832661,-460.0,0.00022932,2]
[378049202,1754695832670,-460.0,0.00022932,2]
[378049203,1754695832679,-522.50518272,0.00022932,2]
[378049204,1754695832689,-460.0,0.00022932,2]
[378049205,1754695832699,-460.0,0.00022932,2]
[378049206,1754695832708,-460.0,0.00022932,2]
[378049207,1754695832717,-254.78031582,0.00022932,2]
[378049208,1754695832726,-696.62023,0.00022932,7]
[378049209,1754695832736,-696.62023,0.00022932,7]
[378049210,1754695832746,-171.298017,0.00022932,7]
[378049211,1754695832755,-151.0,0.00022932,7]
[378049212,1754695832764,-217.126677,0.00022932,7]
[378049213,1754695832773,-460.0,0.00022932,2]
[378049214,1754695832782,-460.0,0.00022932,2]
[378049215,1754695832792,-151.0,0.00022932,7]
[378049216,1754695832801,-460.0,0.00022932,2]
[378049217,1754695832810,-177.082696,0.00022932,7]
[378049218,1754695832820,-151.0,0.00022932,7]
[378049219,1754695832829,-460.0,0.00022932,2]
[378049220,1754695832839,-557.62,0.00022932,2]
[378049221,1754695832848,-460.0,0.00022932,2]
[378049222,1754695832857,-303.81061069,0.00022932,2]
[378049223,1754695832867,-499.55229,0.00022932,7]
[378049224,1754695832876,-461.13033138,0.00022932,2]
[378049225,1754695832885,-499.55229,0.00022932,7]
[378049226,1754695832894,-245.62795233,0.00022932,2]
[378049227,1754695832904,-91.78063091,0.00022932,2]
[378049228,1754695833028,-305.39955457,0.00022932,2]
[378049229,1754695833038,-358.85501273,0.00022932,2]
[378049230,1754695833049,-101.14498727,0.00022932,2]
[378049231,1754695833059,-460.0,0.00022932,2]
[378049232,1754695833204,-500.0,0.00022932,2]
[378049233,1754695833221,-460.0,0.00022932,2]
[378049234,1754695833231,-537.62096737,0.00022932,2]
[378049235,1754695833241,-199.41711371,0.00022932,7]
[378049236,1754695833250,-460.0,0.00022932,2]
[378049237,1754695833260,-205.379861,0.00022932,7]
[378049238,1754695833269,-205.379861,0.00022932,7]
[378049239,1754695833279,-460.0,0.00022932,2]
[378049240,1754695833289,-766.396396,0.00022932,7]
[378049241,1754695833298,-92.73421838,0.00022932,7]
[378049242,1754695837116,765.3,0.00021932,2]
[378049243,1754695837665,765.3,0.00022206,2]
[378049244,1754695837857,-293.34607202,0.00022931,2]
[378049245,1754695837867,-673.66217762,0.00022932,7]
[378049246,1754695837876,-151.0,0.00022932,7]
[378049247,1754695837886,-151.0,0.00022932,7]
[378049248,1754695837895,-151.0,0.00022932,7]
[378049249,1754695837904,-460.0,0.00022932,2]
[378049250,1754695837914,-460.0,0.00022933,2]
[378049251,1754695837923,-460.0,0.00022933,2]
[378049252,1754695837932,-276.394231,0.00022933,7]
[378049253,1754695837941,-151.0,0.00022933,7]
[378049254,1754695837951,-151.0,0.00022933,7]
[378049255,1754695837960,-151.0,0.00022933,7]
[378049256,1754695837969,-151.0,0.00022933,7]
[378049257,1754695837978,-151.0,0.00022933,7]
[378049258,1754695837987,-696.62023,0.00022933,7]
[378049259,1754695837997,-696.62023,0.00022933,7]
[378049261,1754695838006,-151.0,0.00022933,7]
[378049263,1754695838016,-217.126677,0.00022933,7]
[378049265,1754695838025,-151.0,0.00022933,7]
[378049267,1754695838035,-151.0,0.00022933,7]
[378049269,1754695838043,-499.55229,0.00022933,7]
[378049271,1754695838052,-499.55229,0.00022933,7]
[378049273,1754695838062,-151.0,0.00022933,7]
[378049275,1754695838072,-205.379861,0.00022933,7]
[378049277,1754695838081,-205.379861,0.00022933,7]
[378049279,1754695838090,-766.396396,0.00022933,7]
[378049281,1754695838104,-766.396396,0.00022933,7]
[378049283,1754695838113,-461.45099301,0.00022933,7]
[378049285,1754695838123,-215.36146706,0.00022933,7]
[378049286,1754695838133,-151.0,0.00022934,7]
[378049287,1754695838143,-82.93165029,0.00022934,2]
[378049288,1754695838157,-290.75999998,0.00022934,2]
[378049289,1754695838169,-126.30834973,0.00022934,2]
[378049290,1754695838178,-151.0,0.00022934,2]
[378049291,1754695838188,-151.0,0.00022934,2]
[378049292,1754695838197,-151.0,0.00022934,2]
[378049293,1754695838206,-151.0,0.00022934,7]
[378049294,1754695838215,-151.0,0.00022934,7]
[378049295,1754695838224,-151.0,0.00022934,7]
[378049296,1754695838233,-151.0,0.00022934,7]
[378049297,1754695838242,-696.62023,0.00022934,7]
[378049298,1754695838251,-696.62023,0.00022934,7]
[378049299,1754695838261,-151.0,0.00022934,2]
[378049300,1754695838269,-151.0,0.00022934,2]
[378049301,1754695838279,-151.0,0.00022934,2]
[378049302,1754695838288,-151.0,0.00022934,7]
[378049303,1754695838297,-151.0,0.00022934,7]
[378049304,1754695838307,-217.126677,0.00022934,7]
[378049305,1754695838316,-159.899081,0.00022934,7]
[378049306,1754695838325,-299.066887,0.00022934,7]
[378049307,1754695838334,-151.0,0.00022934,7]
[378049308,1754695838343,-151.0,0.00022934,7]
[378049309,1754695838352,-151.0,0.00022934,2]
[378049310,1754695838362,-151.0,0.00022934,2]
[378049311,1754695838372,-151.0,0.00022934,2]
[378049312,1754695838382,-500.0,0.00022934,2]
[378049313,1754695838391,-151.0,0.00022934,2]
[378049314,1754695838399,-499.55229,0.00022934,7]
[378049315,1754695838409,-499.55229,0.00022934,7]
[378049316,1754695838418,-499.55229,0.00022934,7]
[378049317,1754695838427,-499.55229,0.00022934,7]
[378049318,1754695838436,-205.379861,0.00022934,7]
[378049319,1754695838445,-205.379861,0.00022934,7]
[378049320,1754695838454,-205.379861,0.00022934,7]
[378049321,1754695838464,-205.379861,0.00022934,7]
[378049322,1754695838473,-766.396396,0.00022934,7]
[378049323,1754695838482,-766.396396,0.00022934,7]
[378049324,1754695838492,-766.396396,0.00022934,7]
[378049325,1754695838502,-766.396396,0.00022934,7]
[378049326,1754695838511,-151.0,0.00022934,7]
[378049327,1754695838520,-151.0,0.00022934,2]
[378049328,1754695838529,-151.0,0.00022934,2]
[378049329,1754695838538,-500.0,0.00022934,2]
[378049330,1754695838547,-151.0,0.00022934,2]
[378049331,1754695838556,-151.0,0.00022934,2]
[378049332,1754695838566,-151.24896388,0.00022934,2]
[378049333,1754695838575,-151.0,0.00022934,2]
[378049334,1754695838584,-500.0,0.00022934,2]
[378049335,1754695838595,-463.14306087,0.00022973,2]
[378049336,1754695838608,-36.85693913,0.00022973,2]
[378049337,1754695838618,-500.0,0.00022973,2]
[378049338,1754695838628,-500.0,0.00022973,2]
[378049339,1754695838637,-502.58499416,0.00022973,2]
[378049340,1754695838646,-500.0,0.00022973,2]
[378049341,1754695838655,-500.0,0.00022973,2]
[378049342,1754695838665,-500.0,0.00022973,2]
[378049343,1754695838674,-500.0,0.00022973,2]
[378049344,1754695838684,-500.0,0.00022973,2]
[378049345,1754695838693,-500.0,0.00022973,2]
[378049346,1754695838703,-500.0,0.00022973,2]
[378049347,1754695838711,-500.0,0.00022973,2]
[378049348,1754695838720,-500.0,0.00022973,2]
[378049349,1754695838730,-500.0,0.00022973,2]
[378049350,1754695838739,-500.0,0.00022973,2]
[378049351,1754695838748,-500.0,0.00022973,2]
[378049352,1754695838758,-500.0,0.00022973,2]
[378049353,1754695838767,-500.0,0.00022973,2]
[378049354,1754695838777,-500.0,0.00022973,2]
[378049355,1754695838786,-500.0,0.00022973,2]
[378049356,1754695838803,-500.0,0.00022973,2]
[378049357,1754695838817,-500.0,0.00022973,2]
[378049358,1754695838826,-500.0,0.00022973,2]
[378049359,1754695838835,-500.0,0.00022973,2]
[378049360,1754695838844,-500.0,0.00022973,2]
[378049361,1754695838854,-500.0,0.00022973,2]
[378049362,1754695838863,-500.0,0.00022973,2]
[378049363,1754695838873,-500.0,0.00022973,2]
[378049364,1754695838883,-500.54014704,0.00022973,2]
[378049365,1754695838892,-500.0,0.00022973,2]
[378049366,1754695838902,-500.0,0.00022973,2]
[378049367,1754695838911,-564.84152329,0.00022973,2]
[378049368,1754695838920,-500.0,0.00022973,2]